fUSD/lending_fUSD_20240327
["ID","MTS","AMOUNT","RATE_DAILY","PERIOD"]
[320802807,1711561933987,-875.05,0.00057808,120]
[320802808,1711561933996,-500.0,0.00057808,120]
[320802809,1711561934006,-896.37,0.00057808,120]
[320802810,1711561934015,-526.04,0.00057808,120]
[320802811,1711561934024,-774.53,0.00057808,120]
[320802812,1711561934034,-623.96,0.00057808,120]
[320802813,1711561934043,-1500.57,0.00057808,120]
[320802814,1711561934054,-500.0,0.00057808,120]
[320802815,1711561934064,-1293.46,0.00057808,120]
[320802816,1711561934073,-663.1,0.00057808,120]
[320802817,1711561934083,-500.0,0.00057808,120]
[320802818,1711561934093,-591.57,0.00057808,120]
[320802819,1711561934102,-540.2,0.00057808,120]
[320802820,1711561934112,-500.0,0.00057808,120]
[320802821,1711561934122,-826.04,0.00057808,120]
[320802822,1711561934133,-802.7,0.00057808,120]
[320802823,1711561934142,-551.8,0.00057808,120]
[320802824,1711561934151,-792.47,0.00057808,120]
[320802825,1711561934161,-500.0,0.00057808,120]
[320802826,1711561934171,-507.03,0.00057808,120]
[320802827,1711561934181,-814.62,0.00057808,120]
[320802828,1711561934190,-519.12,0.00057808,120]
[320802829,1711561934199,-500.0,0.00057808,120]
[320802830,1711561934209,-553.94,0.00057808,120]
[320802831,1711561934218,-1363.26,0.00057808,120]
[320802832,1711561934227,-681.15,0.00057808,120]
[320802833,1711561934237,-1247.0,0.00057808,120]
[320802834,1711561934247,-828.0,0.00057808,120]
[320802835,1711561934256,-907.95,0.00057808,120]
[320802836,1711561934266,-691.03,0.00057808,120]
[320802837,1711561934275,-593.73676562,0.00057808,120]
[320802838,1711561934285,-274.04992465,0.00057808,120]
[320802839,1711561934294,-1943.45,0.00057808,120]
[320802840,1711561934304,-1363.72,0.00057808,120]
[320802841,1711561934313,-500.0,0.00057808,120]
[320802842,1711561934323,-1264.66,0.00057808,120]
[320802843,1711561934333,-518.11,0.00057808,120]
[320802844,1711561934342,-500.0,0.00057808,120]
[320802845,1711561934352,-785.6,0.00057808,120]
[320802846,1711561934361,-500.0,0.00057808,120]
[320802847,1711561934370,-500.0,0.00057808,120]
[320802848,1711561934381,-533.96,0.00057808,120]
[320802849,1711561934390,-610.76,0.00057808,120]
[320802850,1711561934399,-500.0,0.00057808,120]
[320802851,1711561934409,-601.27,0.00057808,120]
[320802852,1711561934418,-500.0,0.00057808,120]
[320802853,1711561934428,-619.35,0.00057808,120]
[320802854,1711561934437,-723.32,0.00057808,120]
[320802855,1711561934447,-658.94,0.00057808,30]
[320802856,1711561934456,-604.53,0.00057808,120]
[320802857,1711561934466,-500.0,0.00057808,120]
[320802858,1711561934475,-627.6,0.00057808,120]
[320802859,1711561934485,-541.49,0.00057808,120]
[320802860,1711561934495,-525.41,0.00057808,120]
[320802861,1711561934504,-1259.13,0.00057808,120]
[320802862,1711561934513,-500.0,0.00057808,120]
[320802863,1711561934523,-1285.86,0.00057808,120]
[320802864,1711561934533,-961.87,0.00057808,120]
[320802865,1711561934544,-1118.41,0.00057808,120]
[320802866,1711561934554,-500.0,0.00057808,120]
[320802867,1711561934563,-653.33,0.00057808,120]
[320802868,1711561934573,-500.0,0.00057808,120]
[320802869,1711561934582,-515.61,0.00057808,120]
[320802870,1711561934592,-547.17069924,0.00057808,120]
[320802871,1711561934602,-881.34,0.00057808,120]
[320802872,1711561934612,-594.96,0.00057808,120]
[320802873,1711561934621,-526.36,0.00057808,120]
[320802874,1711561934632,-635.55,0.00057808,120]
[320802875,1711561934642,-500.0,0.00057808,120]
[320802876,1711561934651,-500.0,0.00057808,120]
[320802877,1711561934661,-569.07,0.00057808,120]
[320802878,1711561934671,-513.81,0.00057808,120]
[320802879,1711561934681,-885.2,0.00057808,120]
[320802880,1711561934690,-507.05,0.00057808,120]
[320802881,1711561934701,-345.9,0.00057808,120]
[320802882,1711561934710,-500.0,0.00057808,120]
[320802883,1711561934720,-969.37,0.00057808,120]
[320802884,1711561934730,-500.0,0.00057808,120]
[320802885,1711561934740,-500.0,0.00057808,120]
[320802886,1711561934750,-712.96,0.00057808,120]
[320802887,1711561934759,-586.94358771,0.00057808,120]
[320802888,1711561934769,-607.67,0.00057808,120]
[320802889,1711561934779,-483.28,0.00057808,120]
[320802890,1711561934789,-500.0,0.00057808,120]
[320802891,1711561934990,-500.0,0.00057808,120]
[320802892,1711561935002,-572.09,0.00057808,120]
[320802893,1711561935012,-633.56,0.00057808,120]
[320802894,1711561935023,-1276.08,0.00057808,120]
[320802895,1711561935033,-743.04,0.00057808,120]
[320802896,1711561935044,-994.38,0.00057808,120]
[320802897,1711561935054,-1464.37,0.00057808,120]
[320802898,1711561935065,-1308.17,0.00057808,120]
[320802899,1711561935075,-1966.83,0.00057808,120]
[320802900,1711561935084,-882.23,0.00057808,120]
[320802901,1711561935094,-1167.58,0.00057808,120]
[320802902,1711561935104,-500.0,0.00057808,120]
[320802903,1711561935113,-939.99,0.00057808,120]
[320802904,1711561935123,-1680.42,0.00057808,120]
[320802905,1711561935134,-654.45,0.00057808,120]
[320802906,1711561935143,-1090.78,0.00057808,120]
[320802907,1711561935153,-5693.99,0.00057808,120]
[320802908,1711561935163,-2767.8,0.00057808,120]
[320802909,1711561935173,-631.11,0.00057808,120]
[320802910,1711561935183,-638.94,0.00057808,120]
[320802911,1711561935192,-1880.06,0.00057808,120]
[320802912,1711561935202,-1154.81,0.00057808,120]
[320802913,1711561935211,-3576.66,0.00057808,120]
[320802914,1711561935220,-597.69,0.00057808,120]
[320802915,1711561935230,-11680.99,0.00057808,120]
[320802916,1711561935239,-500.0,0.00057808,120]
[320802917,1711561935248,-1513.74,0.00057808,120]
[320802918,1711561935257,-500.0,0.00057808,120]
[320802919,1711561935267,-500.0,0.00057808,120]
[320802920,1711561935277,-4891.01,0.00057808,120]
[320802921,1711561935287,-820.32,0.00057808,120]
[320802922,1711561935296,-2266.19,0.00057808,120]
[320802923,1711561935305,-4319.88,0.00057808,120]
[320802924,1711561935315,-638.01,0.00057808,120]
[320802925,1711561935323,-1948.43,0.00057808,120]
[320802926,1711561935333,-594.89,0.00057808,120]
[320802927,1711561935343,-58191.63,0.00057808,120]
[320802928,1711561935352,-500.0,0.00057808,120]
[320802929,1711561935362,-4872.06,0.00057808,120]
[320802930,1711561935371,-25819.15,0.00057808,120]
[320802931,1711561935383,-916.42,0.00057808,120]
[320802932,1711561935392,-672.12,0.00057808,120]
[320802933,1711561935401,-500.0,0.00057808,120]
[320802934,1711561935410,-2822.64,0.00057808,120]
[320802935,1711561935420,-5739.01,0.00057808,120]
[320802936,1711561935429,-1599.36,0.00057808,120]
[320802937,1711561935439,-1773.91,0.00057808,120]
[320802938,1711561935449,-7896.21,0.00057808,120]
[320802939,1711561935458,-580.5,0.00057808,120]
[320802940,1711561935468,-500.0,0.00057808,120]
[320802941,1711561935478,-702.31,0.00057808,120]
[320802942,1711561935487,-4077.6,0.00057808,120]
[320802943,1711561935496,-962.02,0.00057808,120]
[320802944,1711561935506,-1910.86,0.00057808,120]
[320802945,1711561935516,-1981.61,0.00057808,120]
[320802946,1711561935526,-993.68,0.00057808,120]
[320802947,1711561935537,-1310.9,0.00057808,120]
[320802948,1711561935546,-5861.79,0.00057808,120]
[320802949,1711561935556,-861.74,0.00057808,120]
[320802950,1711561935566,-3868.28,0.00057808,120]
[320802951,1711561935577,-4602.46,0.00057808,120]
[320802952,1711561935587,-2663.41,0.00057808,120]
[320802953,1711561935596,-2285.5,0.00057808,120]
[320802954,1711561935607,-7201.79,0.00057808,120]
[320802955,1711561935617,-1041.92,0.00057808,120]
[320802956,1711561935626,-500.0,0.00057808,120]
[320802957,1711561935638,-2054.16,0.00057808,120]
[320802958,1711561935648,-1431.94,0.00057808,120]
[320802959,1711561935658,-18909.02,0.00057808,120]
[320802960,1711561935669,-1528.43,0.00057808,120]
[320802961,1711561935678,-1715.09,0.00057808,120]
[320802962,1711561935688,-543.42,0.00057808,120]
[320802963,1711561935697,-836.18,0.00057808,120]
[320802964,1711561935706,-2529.3,0.00057808,120]
[320802965,1711561935716,-1204.05,0.00057808,120]
[320802966,1711561935725,-882.15,0.00057808,120]
[320802967,1711561935734,-500.0,0.00057808,120]
[320802968,1711561935744,-1890.07,0.00057808,120]
[320802969,1711561935753,-1395.77,0.00057808,120]
[320802970,1711561935763,-500.0,0.00057808,120]
[320802971,1711561935772,-22066.4,0.00057808,120]
[320802972,1711561935782,-9133.29,0.00057808,120]
[320802973,1711561935791,-3276.54,0.00057808,120]
[320802974,1711561935801,-3779.21,0.00057808,120]
[320802975,1711561935811,-505.39,0.00057808,120]
[320802976,1711561935820,-1407.53,0.00057808,120]
[320802977,1711561935830,-1780.21,0.00057808,120]
[320802978,1711561935839,-744.71,0.00057808,120]
[320802979,1711561935849,-3375.62,0.00057808,120]
[320802980,1711561935859,-500.0,0.00057808,120]
[320802981,1711561935870,-1245.33,0.00057808,120]
[320802982,1711561935879,-825.22,0.00057808,120]
[320802983,1711561935894,-2499.0,0.00057808,120]
[320802984,1711561935904,-1139.82,0.00057808,120]
[320802985,1711561935916,-3390.46,0.00057808,120]
[320802986,1711561935927,-2297.82,0.00057808,120]
[320802987,1711561935938,-36215.98,0.00057808,120]
[320802988,1711561935948,-2115.9,0.00057808,120]
[320802989,1711561935958,-504.0,0.00057808,120]
[320802990,1711561935969,-500.0,0.00057808,120]
[320802991,1711561935978,-635.43,0.00057808,120]
[320802992,1711561935987,-509.72,0.00057808,7]
[320802993,1711561935998,-1985.21,0.00057808,120]
[320802994,1711561936008,-4093.44,0.00057808,120]
[320802995,1711561936017,-598.33,0.00057808,120]
[320802996,1711561936027,-3703.02,0.00057808,120]
[320802997,1711561936037,-3170.6,0.00057808,120]
[320802998,1711561936047,-4518.78,0.00057808,120]
[320802999,1711561936056,-816.34,0.00057808,120]
[320803000,1711561936065,-550.58,0.00057808,120]
[320803001,1711561936074,-500.0,0.00057808,120]
[320803002,1711561936083,-3365.42,0.00057808,120]
[320803003,1711561936093,-5597.96,0.00057808,120]
[320803004,1711561936102,-1850.45,0.00057808,120]
[320803005,1711561936111,-333.81584369,0.00057808,120]
[320803006,1711561936122,-543.16,0.00057808,120]
[320803007,1711561936131,-1437.25,0.00057808,120]
[320803008,1711561936143,-500.0,0.00057808,120]
[320803009,1711561936152,-13261.96,0.00057808,120]
[320803010,1711561936161,-2460.7,0.00057808,120]
[320803011,1711561936171,-688.55,0.00057808,120]
[320803012,1711561936180,-1308.22,0.00057808,120]
[320803013,1711561936189,-1655.41,0.00057808,120]
[320803014,1711561936198,-500.0,0.00057808,120]
[320803015,1711561936207,-3292.56,0.00057808,120]
[320803016,1711561936217,-606.26,0.00057808,120]
[320803017,1711561936226,-4771.81,0.00057808,120]
[320803018,1711561936235,-2911.12,0.00057808,120]
[320803019,1711561936244,-1591.58,0.00057808,120]
[320803020,1711561936254,-8314.67,0.00057808,21]
[320803021,1711561936263,-515.6,0.00057808,120]
[320803022,1711561936272,-1246.89,0.00057808,120]
[320803023,1711561936282,-1689.16,0.00057808,120]
[320803024,1711561936291,-500.0,0.00057808,120]
[320803025,1711561936300,-770.25,0.00057808,120]
[320803026,1711561936309,-8380.88,0.00057808,120]
[320803027,1711561936318,-614.46,0.00057808,120]
[320803028,1711561936327,-2319.97,0.00057808,120]
[320803029,1711561936337,-2989.36,0.00057808,120]
[320803030,1711561936346,-10959.62,0.00057808,120]
[320803031,1711561936356,-521.47,0.00057808,120]
[320803032,1711561936365,-2645.1,0.00057808,120]
[320803033,1711561936375,-758.38,0.00057808,120]
[320803034,1711561936386,-12744.26,0.00057808,120]
[320803035,1711561936396,-500.0,0.00057808,120]
[320803036,1711561936405,-11517.5,0.00057808,120]
[320803037,1711561936415,-2628.59,0.00057808,120]
[320803038,1711561936424,-1981.45,0.00057808,120]
[320803039,1711561936433,-607.99036683,0.00057808,120]
[320803040,1711561936443,-500.0,0.00057808,120]
[320803041,1711561936452,-500.0,0.00057808,120]
[320803042,1711561936461,-2618.9,0.00057808,120]
[320803043,1711561936470,-2635.65,0.00057808,120]
[320803044,1711561936479,-2440.72,0.00057808,120]
[320803045,1711561936488,-1641.2,0.00057808,120]
[320803046,1711561936504,-1422.66,0.00057808,120]
[320803047,1711561936564,-1953.26,0.00057808,120]
[320803048,1711561936573,-680.59,0.00057808,120]
[320803049,1711561936583,-500.0,0.00057808,120]
[320803050,1711561936592,-851.11,0.00057808,120]
[320803051,1711561936602,-516.23,0.00057808,120]
[320803052,1711561936611,-4524.02,0.00057808,120]
[320803053,1711561936622,-833.36,0.00057808,120]
[320803054,1711561936634,-500.0,0.00057808,120]
[320803055,1711561936645,-2147.51,0.00057808,120]
[320803056,1711561936654,-1826.97,0.00057808,120]
[320803057,1711561936665,-1200.4,0.00057808,120]
[320803058,1711561936674,-6977.94,0.00057808,120]
[320803059,1711561936684,-4994.03,0.00057808,120]
[320803060,1711561936695,-1042.58,0.00057808,120]
[320803061,1711561936704,-818.62,0.00057808,120]
[320803062,1711561936714,-1312.03,0.00057808,120]
[320803063,1711561936723,-1814.79,0.00057808,120]
[320803064,1711561936733,-1730.09,0.00057808,120]
[320803065,1711561936743,-500.0,0.00057808,120]
[320803066,1711561936752,-3092.64,0.00057808,120]
[320803067,1711561936762,-858.06,0.00057808,120]
[320803068,1711561936772,-500.0,0.00057808,120]
[320803069,1711561936783,-3331.35,0.00057808,120]
[320803070,1711561936792,-1107.56,0.00057808,120]
[320803071,1711561936802,-1629.06,0.00057808,120]
[320803072,1711561936812,-1926.96,0.00057808,120]
[320803073,1711561936821,-5998.21,0.00057808,120]
[320803074,1711561936831,-1276.61,0.00057808,120]
[320803075,1711561936841,-978.47,0.00057808,120]
[320803076,1711561936850,-1204.74,0.00057808,120]
[320803077,1711561936859,-628.43102966,0.00057808,120]
[320803078,1711561936872,-500.0,0.00057808,120]
[320803079,1711561936883,-1112.11,0.00057808,120]
[320803080,1711561936893,-500.0,0.00057808,120]
[320803081,1711561936903,-5147.59,0.00057808,120]
[320803082,1711561936913,-1278.89,0.00057808,120]
[320803083,1711561936924,-1257.45,0.00057808,120]
[320803084,1711561936933,-5642.74,0.00057808,120]
[320803085,1711561936943,-160.71817672,0.00057812,112]
[320803086,1711561936953,-150.19866873,0.00057838,74]
[320803087,1711561936963,-155.78,0.00057861,120]
[320803088,1711561936972,-2466.0,0.0005787,117]
[320803089,1711561936981,-200.0,0.00057881,120]
[320803090,1711561936991,-800.0,0.00057881,120]
[320803091,1711561937000,-500.0,0.00057881,120]
[320803092,1711561937009,-15000.0,0.0005789,14]
[320803093,1711561937019,-500.0,0.00057956,120]
[320803094,1711561937029,-500.0,0.00057956,120]
[320803095,1711561937038,-968.0,0.00057966,120]
[320803096,1711561937048,-200.0,0.00057978,2]
[320803097,1711561937057,-6890.22723635,0.0005799,30]
[320803098,1711561937067,-1000.0,0.00058,120]
[320803099,1711561937076,-5000.0,0.00058,120]
[320803100,1711561937086,-1000.0,0.00058,120]
[320803101,1711561937094,-21929.23969531,0.00058,30]
[320803102,1711561937104,-10400.0,0.00058,31]
[320803103,1711561937113,-150.0,0.00058,30]
[320803104,1711561937122,-533.89,0.00058,30]
[320803105,1711561937133,-600.0,0.00058,59]
[320803106,1711561937142,-4127.42913217,0.00058,120]
[320803107,1711561937151,-158.63652466,0.00058004,120]
[320803108,1711561937160,-5056.51492563,0.00058021,120]
[320803109,1711561937170,-2297.87115028,0.00058021,120]
[320803110,1711561937179,-745.54344938,0.00058021,120]
[320803111,1711561937189,-2121.19438282,0.00058021,120]
[320803112,1711561937198,-1034.46058362,0.0005804,120]
[320803113,1711561937208,-165.93371293,0.00058052,120]
[320803114,1711561937217,-412.62,0.00058072,120]
[320803115,1711561937226,-522.2,0.00058082,120]
[320803116,1711561937236,-500.0,0.00058082,120]
[320803117,1711561937245,-500.0,0.00058082,120]
[320803118,1711561937254,-500.0,0.00058082,120]
[320803119,1711561937263,-631.01,0.00058082,120]
[320803120,1711561937272,-500.0,0.00058082,120]
[320803121,1711561937282,-500.0,0.00058082,120]
[320803122,1711561937291,-530.38,0.00058082,120]
[320803123,1711561937300,-500.0,0.00058082,120]
[320803124,1711561937310,-500.0,0.00058082,120]
[320803125,1711561937319,-500.0,0.00058082,120]
[320803126,1711561937329,-500.0,0.00058082,120]
[320803127,1711561937338,-517.87,0.00058082,120]
[320803128,1711561937348,-736.48,0.00058082,120]
[320803129,1711561937357,-500.0,0.00058082,120]
[320803130,1711561937367,-500.0,0.00058082,120]
[320803131,1711561937377,-827.53,0.00058082,120]
[320803132,1711561937388,-500.0,0.00058082,120]
[320803133,1711561937398,-238.08,0.00058082,120]
[320803134,1711561937407,-1149.15,0.00058082,120]
[320803135,1711561937417,-683.71,0.00058082,120]
[320803136,1711561937426,-588.63,0.00058082,120]
[320803137,1711561937435,-1653.05,0.00058082,120]
[320803138,1711561937445,-721.85,0.00058082,120]
[320803139,1711561937454,-1272.4,0.00058082,120]
[320803140,1711561937463,-758.1,0.00058082,120]
[320803141,1711561937472,-751.34,0.00058082,120]
[320803142,1711561937482,-500.0,0.00058082,120]
[320803143,1711561937492,-1106.66,0.00058082,120]
[320803144,1711561937502,-667.72,0.00058082,120]
[320803145,1711561937511,-500.0,0.00058082,120]
[320803146,1711561937521,-546.53,0.00058082,120]
[320803147,1711561937531,-525.52,0.00058082,120]
[320803148,1711561937542,-1650.28,0.00058082,120]
[320803149,1711561937552,-500.0,0.00058082,120]
[320803150,1711561937563,-1208.64,0.00058082,120]
[320803151,1711561937575,-1675.07,0.00058082,120]
[320803152,1711561937586,-500.0,0.00058082,60]
[320803153,1711561937597,-875.05,0.00058082,120]
[320803154,1711561937608,-500.0,0.00058082,120]
[320803155,1711561937620,-896.37,0.00058082,120]
[320803156,1711561937631,-526.04,0.00058082,120]
[320803157,1711561937644,-774.53,0.00058082,120]
[320803158,1711561937654,-623.96,0.00058082,120]
[320803159,1711561937665,-1500.57,0.00058082,120]
[320803160,1711561937674,-500.0,0.00058082,120]
[320803161,1711561937684,-1293.46,0.00058082,120]
[320803162,1711561937693,-663.1,0.00058082,120]
[320803163,1711561937702,-500.0,0.00058082,120]
[320803164,1711561937711,-591.57,0.00058082,120]
[320803165,1711561937890,-540.2,0.00058082,120]
[320803166,1711561937901,-500.0,0.00058082,120]
[320803167,1711561937911,-826.04,0.00058082,120]
[320803168,1711561937922,-802.7,0.00058082,120]
[320803169,1711561937932,-551.8,0.00058082,120]
[320803170,1711561937942,-792.47,0.00058082,120]
[320803171,1711561937952,-500.0,0.00058082,120]
[320803172,1711561937961,-507.03,0.00058082,120]
[320803173,1711561937971,-814.62,0.00058082,120]
[320803174,1711561937981,-519.12,0.00058082,120]
[320803175,1711561937990,-500.0,0.00058082,120]
[320803176,1711561938003,-553.94,0.00058082,120]
[320803177,1711561938013,-1363.26,0.00058082,120]
[320803178,1711561938023,-681.15,0.00058082,120]
[320803179,1711561938032,-1247.0,0.00058082,120]
[320803180,1711561938042,-828.0,0.00058082,120]
[320803181,1711561938052,-691.03,0.00058082,120]
[320803182,1711561938062,-907.95,0.00058082,120]
[320803183,1711561938072,-1943.45,0.00058082,120]
[320803184,1711561938082,-1363.72,0.00058082,120]
[320803185,1711561938091,-500.0,0.00058082,120]
[320803186,1711561938101,-1264.66,0.00058082,120]
[320803187,1711561938110,-518.11,0.00058082,120]
[320803188,1711561938120,-500.0,0.00058082,120]
[320803189,1711561938130,-785.6,0.00058082,120]
[320803190,1711561938142,-500.0,0.00058082,120]
[320803191,1711561938152,-500.0,0.00058082,120]
[320803192,1711561938162,-533.96,0.00058082,120]
[320803193,1711561938172,-610.76,0.00058082,120]
[320803194,1711561938181,-500.0,0.00058082,120]
[320803195,1711561938192,-601.27,0.00058082,120]
[320803196,1711561938202,-430.62996113,0.00058082,120]
[320803197,1711561938211,-619.35,0.00058082,120]
[320803198,1711561938221,-723.32,0.00058082,120]
[320803199,1711561938231,-658.94,0.00058082,30]
[320803200,1711561938241,-604.53,0.00058082,120]
[320803201,1711561938251,-500.0,0.00058082,120]
[320803202,1711561938261,-627.6,0.00058082,120]
[320803203,1711561938271,-541.49,0.00058082,120]
[320803204,1711561938281,-525.41,0.00058082,120]
[320803205,1711561938291,-1259.13,0.00058082,120]
[320803206,1711561938301,-500.0,0.00058082,120]
[320803207,1711561938311,-1285.86,0.00058082,120]
[320803208,1711561938321,-961.87,0.00058082,120]
[320803209,1711561938331,-1118.41,0.00058082,120]
[320803210,1711561938341,-500.0,0.00058082,120]
[320803211,1711561938352,-653.33,0.00058082,120]
[320803212,1711561938362,-500.0,0.00058082,120]
[320803213,1711561938371,-515.61,0.00058082,120]
[320803214,1711561938381,-881.34,0.00058082,120]
[320803215,1711561938394,-594.96,0.00058082,120]
[320803216,1711561938404,-635.55,0.00058082,120]
[320803217,1711561938414,-644.76397064,0.00058082,120]
[320803218,1711561938424,-500.0,0.00058082,120]
[320803219,1711561938434,-569.07,0.00058082,120]
[320803220,1711561938443,-513.81,0.00058082,120]
[320803221,1711561938454,-885.2,0.00058082,120]
[320803222,1711561938465,-507.05,0.00058082,120]
[320803223,1711561938475,-345.9,0.00058082,120]
[320803224,1711561938488,-500.0,0.00058082,120]
[320803225,1711561938498,-969.37,0.00058082,120]
[320803226,1711561938507,-500.0,0.00058082,120]
[320803227,1711561938517,-500.0,0.00058082,120]
[320803228,1711561938527,-712.96,0.00058082,120]
[320803229,1711561938537,-607.67,0.00058082,120]
[320803230,1711561938547,-500.0,0.00058082,120]
[320803231,1711561938558,-631.34,0.00058082,120]
[320803232,1711561938568,-500.0,0.00058082,120]
[320803233,1711561938578,-572.09,0.00058082,120]
[320803234,1711561938587,-633.56,0.00058082,120]
[320803235,1711561938599,-1276.08,0.00058082,120]
[320803236,1711561938609,-743.04,0.00058082,120]
[320803237,1711561938619,-994.38,0.00058082,120]
[320803238,1711561938629,-1464.37,0.00058082,120]
[320803239,1711561938644,-1308.17,0.00058082,120]
[320803240,1711561938654,-1966.83,0.00058082,120]
[320803241,1711561938664,-882.23,0.00058082,120]
[320803242,1711561938673,-1167.58,0.00058082,120]
[320803243,1711561938684,-500.0,0.00058082,120]
[320803244,1711561938695,-939.99,0.00058082,120]
[320803245,1711561938705,-1680.42,0.00058082,120]
[320803246,1711561938715,-654.45,0.00058082,120]
[320803247,1711561938725,-1090.78,0.00058082,120]
[320803248,1711561938735,-5693.99,0.00058082,120]
[320803249,1711561938744,-2767.8,0.00058082,120]
[320803250,1711561938754,-631.11,0.00058082,120]
[320803251,1711561938765,-638.94,0.00058082,120]
[320803252,1711561938775,-1880.06,0.00058082,120]
[320803253,1711561938785,-3576.66,0.00058082,120]
[320803254,1711561938796,-1154.81,0.00058082,120]
[320803255,1711561938806,-597.69,0.00058082,120]
[320803256,1711561938817,-11680.99,0.00058082,120]
[320803257,1711561938827,-500.0,0.00058082,120]
[320803258,1711561938836,-1513.74,0.00058082,120]
[320803259,1711561938845,-500.0,0.00058082,120]
[320803260,1711561938855,-500.0,0.00058082,120]
[320803261,1711561938865,-4891.01,0.00058082,120]
[320803262,1711561938875,-820.32,0.00058082,120]
[320803263,1711561938887,-2266.19,0.00058082,120]
[320803264,1711561938897,-4319.88,0.00058082,120]
[320803265,1711561938907,-638.01,0.00058082,120]
[320803266,1711561938917,-1948.43,0.00058082,120]
[320803267,1711561938927,-594.89,0.00058082,120]
[320803268,1711561938937,-58191.63,0.00058082,120]
[320803269,1711561938947,-500.0,0.00058082,120]
[320803270,1711561938958,-4872.06,0.00058082,120]
[320803271,1711561938968,-25819.15,0.00058082,120]
[320803272,1711561938978,-916.42,0.00058082,120]
[320803273,1711561938987,-672.12,0.00058082,120]
[320803274,1711561938997,-500.0,0.00058082,120]
[320803275,1711561939006,-2822.64,0.00058082,120]
[320803276,1711561939015,-5739.01,0.00058082,120]
[320803277,1711561939025,-1599.36,0.00058082,120]
[320803278,1711561939035,-1773.91,0.00058082,120]
[320803279,1711561939045,-7896.21,0.00058082,120]
[320803280,1711561939055,-580.5,0.00058082,120]
[320803281,1711561939065,-500.0,0.00058082,120]
[320803282,1711561939074,-702.31,0.00058082,120]
[320803283,1711561939083,-4077.6,0.00058082,120]
[320803284,1711561939093,-962.02,0.00058082,120]
[320803285,1711561939103,-1910.86,0.00058082,120]
[320803286,1711561939113,-1981.61,0.00058082,120]
[320803287,1711561939123,-993.68,0.00058082,120]
[320803288,1711561939134,-1310.9,0.00058082,120]
[320803289,1711561939144,-5861.79,0.00058082,120]
[320803290,1711561939152,-861.74,0.00058082,120]
[320803291,1711561939162,-3868.28,0.00058082,120]
[320803292,1711561939172,-4602.46,0.00058082,120]
[320803293,1711561939181,-2663.41,0.00058082,120]
[320803294,1711561939191,-2285.5,0.00058082,120]
[320803295,1711561939201,-7201.79,0.00058082,120]
[320803296,1711561939211,-1041.92,0.00058082,120]
[320803297,1711561939220,-500.0,0.00058082,120]
[320803298,1711561939230,-2054.16,0.00058082,120]
[320803299,1711561939239,-18909.02,0.00058082,120]
[320803300,1711561939249,-1431.94,0.00058082,120]
[320803301,1711561939258,-1528.43,0.00058082,120]
[320803302,1711561939268,-1715.09,0.00058082,120]
[320803303,1711561939278,-543.42,0.00058082,120]
[320803304,1711561939287,-836.18,0.00058082,120]
[320803305,1711561939297,-2529.3,0.00058082,120]
[320803306,1711561939306,-1204.05,0.00058082,120]